[Event "Uralsk-ch Women 2019"]
[Site "Khanty-Mansiysk"]
[Date "2019.03.13"]
[Round "1.2"]
[White "Filippova, Darya"]
[Black "Ilona, Beliakova"]
[Result "1-0"]
[ECO "A17"]
[WhiteElo "2099"]
[BlackElo "1699"]
[Annotator "NA RC"]
[PlyCount "125"]
[EventDate "2019.03.12"]
[EventType "swiss"]
[EventCountry "RUS"]
[SourceTitle "playchess.com"]
[Source "ChessBase"]
[SourceQuality "1"]
[TimeControl "5400+30"]

1. c4 {[%emt 0:00:00]} e6 {[%emt 0:00:00]} 2. Nc3 {[%emt 0:02:32]} Nf6 {[%emt 0:00:56]} 3. Nf3 {[%emt 0:01:46]} b6 {[%emt 0:03:32]} 4. a3 {[%emt 0:03:41]} c5 {[%emt 0:10:05]} 5. e3 {[%emt 0:03:55]} Nc6 {[%emt 0:02:48]} 6. d4 {[%emt 0:00:57]} cxd4 {[%emt 0:12:55]} 7. exd4 {[%emt 0:00:58]} d5 {[%emt 0:00:40]} 8. Ne5 {[%emt 0:06:40]} Nxe5 {[%emt 0:06:53]} 9. dxe5 {[%emt 0:00:11]} Nd7 {[%emt 0:05:28]} 10. cxd5 {[%emt 0:04:35]} Nxe5 {[%emt 0:00:43]} 11. Bb5+ {[%emt 0:02:59]} Bd7 {[%emt 0:05:28]} 12. O-O {[%emt 0:01:10]} Be7 {[%emt 0:11:03]} 13. dxe6 {[%emt 0:01:40]} Bxb5 {[%emt 0:02:14]} 14. exf7+ {[%emt 0:01:03]} Nxf7 {[%emt 0:01:29]} 15. Nxb5 {[%emt 0:01:24]} O-O {[%emt 0:00:48]} 16. Bf4 {[%emt 0:09:46]} Bf6 {[%emt 0:05:28]} 17. Qb3 {[%emt 0:01:19]} Qd7 {[%emt 0:05:25]} 18. Rad1 {[%emt 0:04:56]} Qf5 {[%emt 0:00:21]} 19. Bg3 {[%emt 0:00:36]} Kh8 {[%emt 0:02:40]} 20. Rd5 {[%emt 0:04:04]} Qe4 {[%emt 0:00:49]} 21. Rd7 {[%emt 0:04:08]} Ne5 {[%emt 0:03:14]} 22. Rc7 {[%emt 0:01:41]} Nd3 {[%emt 0:02:17]} 23. Nd6 {[%emt 0:01:05]} Qe2 {[%emt 0:01:59]} 24. Rc2 {[%emt 0:06:18]} Nc5 {[%emt 0:00:32]} 25. Qd5 {[%emt 0:01:01]} Qe7 {[%emt 0:03:26]} 26. Re2 {[%emt 0:05:12]} Qd7 {[%emt 0:01:43]} 27. Rfe1 {[%emt 0:00:49]} h6 {[%emt 0:00:27]} 28. Qh5 {[%emt 0:04:46]} Nd3 {[%emt 0:01:38]} 29. Rf1 {[%emt 0:04:45]} Nxb2 {[%emt 0:01:58]} 30. Qg6 {[%emt 0:00:48]} Na4 {[%emt 0:01:39]} 31. h3 {[%emt 0:01:39]} Nc5 {[%emt 0:01:03]} 32. Rfe1 {[%emt 0:01:57]} Nb7 {[%emt 0:00:39]} 33. Re6 {[%emt 0:01:39]} Nxd6 {[%emt 0:00:21]} 34. Bxd6 {[%emt 0:00:57]} Rf7 {[%emt 0:00:18]} 35. g3 {[%emt 0:04:22]} Bd4 {[%emt 0:01:19]} 36. R1e2 {[%emt 0:00:44]} Bf6 {[%emt 0:01:55]} 37. Kh2 {[%emt 0:01:04]} b5 {[%emt 0:00:39]} 38. Bf4 {[%emt 0:00:48]} Raf8 {[%emt 0:01:29]} 39. Rd6 {[%emt 0:03:07]} Qc8 {[%emt 0:00:48]} 40. Rc2 {[%emt 0:00:50]} Qe8 {[%emt 0:00:40]} 41. Rdc6 {[%emt 0:00:39]} Re7 {[%emt 0:00:48]} 42. Qg4 {[%emt 0:00:20]} Qd7 {[%emt 0:00:18]} 43. Bd6 {[%emt 0:00:21]} Qxg4 {[%emt 0:00:07]} 44. hxg4 {[%emt 0:00:06]} Rfe8 {[%emt 0:00:18]} 45. Bxe7 {[%emt 0:00:12]} Rxe7 {[%emt 0:00:29]} 46. Rc7 {[%emt 0:00:46]} Rxc7 {[%emt 0:00:14]} 47. Rxc7 {[%emt 0:00:10]} Bd4 {[%emt 0:00:02]} 48. f4 {[%emt 0:01:11]} Kh7 {[%emt 0:00:23]} 49. f5 {[%emt 0:00:41]} a5 {[%emt 0:01:33]} 50. Rb7 {[%emt 0:00:20]} b4 {[%emt 0:00:31]} 51. a4 {[%emt 0:00:46]} Bc3 {[%emt 0:00:56]} 52. Rb5 {[%emt 0:01:07]} h5 {[%emt 0:01:17]} 53. gxh5 {[%emt 0:01:04]} Kh6 {[%emt 0:00:04]} 54. g4 {[%emt 0:00:11]} Kg5 {[%emt 0:00:12]} 55. Kg3 {[%emt 0:00:11]} Be1+ {[%emt 0:00:19]} 56. Kf3 {[%emt 0:00:07]} Bc3 {[%emt 0:00:17]} 57. Rxa5 {[%emt 0:00:40]} b3 {[%emt 0:00:09]} 58. Rb5 {[%emt 0:00:07]} b2 {[%emt 0:00:15]} 59. a5 {[%emt 0:00:08]} b1=Q {[%emt 0:00:21]} 60. Rxb1 {[%emt 0:00:08]} Bxa5 {[%emt 0:00:03]} 61. Ra1 {[%emt 0:00:19]} Bc3 {[%emt 0:00:06]} 62. Ra6 {[%emt 0:00:09]} Be5 {[%emt 0:00:49]} 63. Rg6+ {[%emt 0:00:15]} 1-0

[Event "Uralsk-ch Women 2019"]
[Site "Khanty-Mansiysk"]
[Date "2019.03.13"]
[Round "1.3"]
[White "Anastasiya, Makarova"]
[Black "Garifullina, Leya"]
[Result "0-1"]
[ECO "A45"]
[WhiteElo "1593"]
[BlackElo "2095"]
[Annotator "NA RC"]
[PlyCount "54"]
[EventDate "2019.03.12"]
[EventType "swiss"]
[EventCountry "RUS"]
[SourceTitle "playchess.com"]
[Source "ChessBase"]
[SourceQuality "1"]
[TimeControl "5400+30"]

1. d4 {[%emt 0:00:00]} Nf6 {[%emt 0:00:12]} 2. e3 {[%emt 0:00:00]} g6 {[%emt 0:00:09]} 3. Bd3 {[%emt 0:00:07]} Bg7 {[%emt 0:00:09]} 4. f4 {[%emt 0:00:11]} O-O {[%emt 0:00:28]} 5. Nf3 {[%emt 0:00:13]} d6 {[%emt 0:00:08]} 6. e4 {[%emt 0:02:35]} Bg4 {[%emt 0:03:20]} 7. Nbd2 {[%emt 0:01:04]} e5 {[%emt 0:01:48]} 8. fxe5 {[%emt 0:02:04]} dxe5 {[%emt 0:00:12]} 9. dxe5 {[%emt 0:02:38]} Nfd7 {[%emt 0:01:08]} 10. h3 {[%emt 0:00:36]} Bxf3 {[%emt 0:00:24]} 11. Nxf3 {[%emt 0:00:10]} Nxe5 {[%emt 0:00:16]} 12. O-O {[%emt 0:02:54]} Nbc6 {[%emt 0:03:34]} 13. a3 {[%emt 0:02:32]} b6 {[%emt 0:03:44]} 14. Rb1 {[%emt 0:01:27]} Nxf3+ {[%emt 0:05:34]} 15. Qxf3 {[%emt 0:01:01]} Ne5 {[%emt 0:00:11]} 16. Qe2 {[%emt 0:00:24]} c5 {[%emt 0:00:14]} 17. Rd1 {[%emt 0:06:56]} Qe7 {[%emt 0:01:22]} 18. Bb5 {[%emt 0:01:21]} a6 {[%emt 0:04:52]} 19. Bxa6 {[%emt 0:01:46]} c4 {[%emt 0:00:47]} 20. Bxc4 {[%emt 0:00:56]} Qc5+ {[%emt 0:00:43]} 21. Kh1 {[%emt 0:01:49]} Qxc4 {[%emt 0:00:39]} 22. Qxc4 {[%emt 0:00:59]} Nxc4 {[%emt 0:00:03]} 23. c3 {[%emt 0:00:48]} Rfe8 {[%emt 0:02:41]} 24. Re1 {[%emt 0:00:52]} f5 {[%emt 0:01:02]} 25. Bf4 {[%emt 0:00:32]} Rxe4 {[%emt 0:01:40]} 26. Rxe4 {[%emt 0:00:57]} fxe4 {[%emt 0:00:04]} 27. Kg1 {[%emt 0:00:05]} e3 {[%emt 0:00:14]} 0-1

[Event "Uralsk-ch Women 2019"]
[Site "Khanty-Mansiysk"]
[Date "2019.03.13"]
[Round "2.2"]
[White "Ekaterina, Kovaleva"]
[Black "Filippova, Darya"]
[Result "0-1"]
[ECO "B14"]
[WhiteElo "1953"]
[BlackElo "2099"]
[Annotator "NA RC"]
[PlyCount "98"]
[EventDate "2019.03.12"]
[EventType "swiss"]
[EventCountry "RUS"]
[SourceTitle "playchess.com"]
[Source "ChessBase"]
[SourceQuality "1"]
[TimeControl "5400+30"]

1. e4 {[%emt 0:00:00]} c6 {[%emt 0:00:00]} 2. d4 {[%emt 0:00:00]} d5 {[%emt 0:00:00]} 3. exd5 {[%emt 0:00:00]} cxd5 {[%emt 0:00:00]} 4. c4 {[%emt 0:00:00]} Nf6 {[%emt 0:00:10]} 5. Nc3 {[%emt 0:00:00]} g6 {[%emt 0:03:40]} 6. Nf3 {[%emt 0:04:07]} Bg7 {[%emt 0:00:38]} 7. cxd5 {[%emt 0:03:07]} O-O {[%emt 0:01:30]} 8. Bc4 {[%emt 0:01:37]} Nbd7 {[%emt 0:00:30]} 9. d6 {[%emt 0:03:08]} exd6 {[%emt 0:00:50]} 10. O-O {[%emt 0:00:21]} Nb6 {[%emt 0:09:14]} 11. Bb3 {[%emt 0:00:11]} d5 {[%emt 0:03:11]} 12. Bf4 {[%emt 0:02:05]} Ne4 {[%emt 0:09:00]} 13. Re1 {[%emt 0:10:23]} Nxc3 {[%emt 0:03:09]} 14. bxc3 {[%emt 0:00:04]} Be6 {[%emt 0:02:58]} 15. Ne5 {[%emt 0:02:15]} Rc8 {[%emt 0:01:57]} 16. Rc1 {[%emt 0:00:17]} Nc4 {[%emt 0:06:14]} 17. Nxc4 {[%emt 0:07:43]} dxc4 {[%emt 0:00:10]} 18. Bc2 {[%emt 0:00:25]} Bd5 {[%emt 0:07:03]} 19. Be4 {[%emt 0:04:04]} Re8 {[%emt 0:01:38]} 20. Qf3 {[%emt 0:10:37]} Rxe4 {[%emt 0:02:46]} 21. Rxe4 {[%emt 0:00:13]} Qa5 {[%emt 0:08:37]} 22. Qh3 {[%emt 0:04:32]} Rf8 {[%emt 0:07:24]} 23. Re2 {[%emt 0:01:35]} h5 {[%emt 0:01:44]} 24. Qe3 {[%emt 0:09:52]} b5 {[%emt 0:01:29]} 25. Qd2 {[%emt 0:03:25]} Kh7 {[%emt 0:01:07]} 26. Rce1 {[%emt 0:13:10]} Qb6 {[%emt 0:00:43]} 27. Be5 {[%emt 0:04:24]} Bh6 {[%emt 0:01:39]} 28. Qb2 {[%emt 0:00:18]} Qc6 {[%emt 0:06:21]} 29. f3 {[%emt 0:00:23]} a5 {[%emt 0:01:08]} 30. Rb1 {[%emt 0:03:52]} b4 {[%emt 0:00:19]} 31. cxb4 {[%emt 0:00:59]} c3 {[%emt 0:00:07]} 32. Qc2 {[%emt 0:00:21]} axb4 {[%emt 0:00:13]} 33. Rxb4 {[%emt 0:00:32]} Ra8 {[%emt 0:01:36]} 34. Rb8 {[%emt 0:01:47]} Rxb8 {[%emt 0:00:39]} 35. Bxb8 {[%emt 0:00:02]} Qb6 {[%emt 0:03:28]} 36. Be5 {[%emt 0:02:05]} f6 {[%emt 0:00:50]} 37. Bg3 {[%emt 0:00:25]} Bd2 {[%emt 0:02:24]} 38. Be1 {[%emt 0:09:49]} Qxd4+ {[%emt 0:00:21]} 39. Kh1 {[%emt 0:00:24]} Qc4 {[%emt 0:03:57]} 40. Re7+ {[%emt 0:00:16]} Kh8 {[%emt 0:00:16]} 41. Re8+ {[%emt 0:00:39]} Kg7 {[%emt 0:00:18]} 42. Kg1 {[%emt 0:00:32]} Bf7 {[%emt 0:04:37]} 43. Re4 {[%emt 0:00:56]} Qc5+ {[%emt 0:00:36]} 44. Kh1 {[%emt 0:00:25]} Qb5 {[%emt 0:00:16]} 45. Kg1 {[%emt 0:00:28]} Qb2 {[%emt 0:00:15]} 46. Qd3 {[%emt 0:00:36]} Qxa2 {[%emt 0:03:59]} 47. Bxd2 {[%emt 0:00:13]} cxd2 {[%emt 0:00:11]} 48. Rd4 {[%emt 0:00:15]} Qa1+ {[%emt 0:00:07]} 49. Kf2 {[%emt 0:00:41]} Qe1# {[%emt 0:00:08] Kxe1} 0-1

[Event "Uralsk-ch Women 2019"]
[Site "Khanty-Mansiysk"]
[Date "2019.03.13"]
[Round "2.3"]
[White "Garifullina, Leya"]
[Black "Galina, Mikheeva"]
[Result "1-0"]
[ECO "C65"]
[WhiteElo "2095"]
[BlackElo "1736"]
[Annotator "NA RC"]
[PlyCount "119"]
[EventDate "2019.03.12"]
[EventType "swiss"]
[EventCountry "RUS"]
[SourceTitle "playchess.com"]
[Source "ChessBase"]
[SourceQuality "1"]
[TimeControl "5400+30"]

1. e4 {[%emt 0:00:00]} e5 {[%emt 0:00:00]} 2. Nf3 {[%emt 0:00:00]} Nc6 {[%emt 0:00:00]} 3. Bb5 {[%emt 0:00:12]} Nf6 {[%emt 0:00:38]} 4. d3 {[%emt 0:00:18]} Bc5 {[%emt 0:01:11]} 5. Bxc6 {[%emt 0:00:40]} dxc6 {[%emt 0:02:21]} 6. Nbd2 {[%emt 0:01:36]} Bd6 {[%emt 0:05:49]} 7. b3 {[%emt 0:01:31]} Qe7 {[%emt 0:04:25]} 8. Bb2 {[%emt 0:00:58]} Nd7 {[%emt 0:01:46]} 9. O-O {[%emt 0:02:30]} f6 {[%emt 0:05:07]} 10. Nh4 {[%emt 0:03:51]} Nc5 {[%emt 0:04:24]} 11. Nc4 {[%emt 0:04:07]} O-O {[%emt 0:05:59]} 12. f4 {[%emt 0:09:17]} exf4 {[%emt 0:05:11]} 13. Nxd6 {[%emt 0:00:34]} cxd6 {[%emt 0:03:33]} 14. Rxf4 {[%emt 0:00:16]} Qc7 {[%emt 0:28:40]} 15. Rf2 {[%emt 0:05:34]} Be6 {[%emt 0:05:16]} 16. Nf5 {[%emt 0:09:32]} d5 {[%emt 0:06:25]} 17. exd5 {[%emt 0:02:04]} cxd5 {[%emt 0:06:07]} 18. Nd4 {[%emt 0:05:14]} Bf7 {[%emt 0:02:04]} 19. Qg4 {[%emt 0:02:02]} Bg6 {[%emt 0:03:51]} 20. Raf1 {[%emt 0:04:02]} Qd7 {[%emt 0:03:20]} 21. Qg3 {[%emt 0:01:51]} Ne6 {[%emt 0:02:02]} 22. Nf3 {[%emt 0:02:31]} d4 {[%emt 0:01:12]} 23. Nh4 {[%emt 0:01:25]} Qf7 {[%emt 0:00:59]} 24. Re1 {[%emt 0:04:13]} Rfe8 {[%emt 0:00:55]} 25. Rfe2 {[%emt 0:01:25]} Bh5 {[%emt 0:00:25]} 26. Re4 {[%emt 0:01:27]} Qd7 {[%emt 0:00:30]} 27. Qf2 {[%emt 0:08:21]} Rad8 {[%emt 0:00:42]} 28. h3 {[%emt 0:01:25]} Bf7 {[%emt 0:00:25]} 29. Nf5 {[%emt 0:01:31]} Bg6 {[%emt 0:00:28]} 30. Bxd4 {[%emt 0:04:22]} Nxd4 {[%emt 0:00:36]} 31. Rxe8+ {[%emt 0:00:04]} Rxe8 {[%emt 0:00:28]} 32. Rxe8+ {[%emt 0:00:07]} Qxe8 {[%emt 0:00:21]} 33. Nxd4 {[%emt 0:00:07]} a6 {[%emt 0:00:46]} 34. Ne2 {[%emt 0:02:01]} Qe5 {[%emt 0:00:26]} 35. Nf4 {[%emt 0:03:37]} Qa1+ {[%emt 0:00:29]} 36. Kh2 {[%emt 0:00:12]} Qe5 {[%emt 0:00:05]} 37. g3 {[%emt 0:01:30]} Be8 {[%emt 0:00:58]} 38. Qe2 {[%emt 0:00:21]} Qxe2+ {[%emt 0:00:15]} 39. Nxe2 {[%emt 0:00:03]} Kf7 {[%emt 0:00:10]} 40. Kg2 {[%emt 0:00:27]} Ke6 {[%emt 0:00:20]} 41. Kf2 {[%emt 0:00:25]} f5 {[%emt 0:00:30]} 42. h4 {[%emt 0:01:00]} h6 {[%emt 0:00:26]} 43. Ke3 {[%emt 0:00:19]} g5 {[%emt 0:00:05]} 44. hxg5 {[%emt 0:00:45]} hxg5 {[%emt 0:00:07]} 45. c4 {[%emt 0:00:30]} Bh5 {[%emt 0:01:47]} 46. Nc3 {[%emt 0:01:10]} Be8 {[%emt 0:00:41]} 47. d4 {[%emt 0:00:16]} Bd7 {[%emt 0:00:43]} 48. Nd5 {[%emt 0:01:05]} Kd6 {[%emt 0:00:28]} 49. Nf6 {[%emt 0:00:53]} Bc8 {[%emt 0:00:30]} 50. Nh7 {[%emt 0:00:12]} g4 {[%emt 0:00:16]} 51. Nf6 {[%emt 0:00:41]} Be6 {[%emt 0:00:45]} 52. Ne8+ {[%emt 0:01:50]} Ke7 {[%emt 0:00:20]} 53. Nc7 {[%emt 0:00:19]} Bc8 {[%emt 0:00:41]} 54. Kf4 {[%emt 0:00:23]} Kd6 {[%emt 0:00:31]} 55. Nd5 {[%emt 0:00:09]} Bd7 {[%emt 0:00:29]} 56. Ne3 {[%emt 0:00:08]} b5 {[%emt 0:00:28]} 57. c5+ {[%emt 0:00:13]} Ke6 {[%emt 0:00:30]} 58. d5+ {[%emt 0:00:10]} Kf6 {[%emt 0:00:22]} 59. c6 {[%emt 0:00:16]} Be8 {[%emt 0:00:16]} 60. Nxf5 {[%emt 0:00:08]} 1-0

[Event "Uralsk-ch Women 2019"]
[Site "Khanty-Mansiysk"]
[Date "2019.03.14"]
[Round "3.2"]
[White "Filippova, Darya"]
[Black "Svetlana, But"]
[Result "1-0"]
[ECO "D00"]
[WhiteElo "2099"]
[BlackElo "1984"]
[Annotator "NA RC"]
[PlyCount "145"]
[EventDate "2019.03.12"]
[EventType "swiss"]
[EventCountry "RUS"]
[SourceTitle "playchess.com"]
[Source "ChessBase"]
[SourceQuality "1"]
[TimeControl "5400+30"]

1. d4 {[%emt 0:00:00]} d5 {[%emt 0:00:00]} 2. Bf4 {[%emt 0:00:00]} Nf6 {[%emt 0:00:42]} 3. e3 {[%emt 0:01:09]} e6 {[%emt 0:02:17]} 4. Nf3 {[%emt 0:01:52]} c5 {[%emt 0:03:16]} 5. c3 {[%emt 0:01:24]} Nc6 {[%emt 0:04:15]} 6. Nbd2 {[%emt 0:02:39]} cxd4 {[%emt 0:03:39]} 7. exd4 {[%emt 0:01:54]} h6 {[%emt 0:05:55]} 8. Bd3 {[%emt 0:03:06]} Bd6 {[%emt 0:00:12]} 9. Bg3 {[%emt 0:03:41]} O-O {[%emt 0:04:28]} 10. Qe2 {[%emt 0:02:41]} Nh5 {[%emt 0:13:23]} 11. Ne5 {[%emt 0:02:22]} Nxg3 {[%emt 0:05:20]} 12. hxg3 {[%emt 0:01:29]} f5 {[%emt 0:03:45]} 13. Ndf3 {[%emt 0:02:37]} Bxe5 {[%emt 0:01:05]} 14. Nxe5 {[%emt 0:01:13]} Nxe5 {[%emt 0:00:38]} 15. Qxe5 {[%emt 0:00:57]} Qf6 {[%emt 0:02:32]} 16. Qe2 {[%emt 0:05:18]} f4 {[%emt 0:11:53]} 17. gxf4 {[%emt 0:01:23]} Qxf4 {[%emt 0:00:09]} 18. Rh5 {[%emt 0:00:59]} Bd7 {[%emt 0:00:53]} 19. Rd1 {[%emt 0:07:53]} Rae8 {[%emt 0:02:02]} 20. Re5 {[%emt 0:04:52]} Rf6 {[%emt 0:05:58]} 21. Rd2 {[%emt 0:03:41]} Rc8 {[%emt 0:05:56]} 22. Qh5 {[%emt 0:13:33]} Be8 {[%emt 0:00:52]} 23. Qh3 {[%emt 0:00:43]} Rd8 {[%emt 0:06:06]} 24. Bc2 {[%emt 0:02:35]} h5 {[%emt 0:06:58]} 25. g3 {[%emt 0:06:41]} Qh6 {[%emt 0:00:24]} 26. Qh4 {[%emt 0:01:27]} Rc8 {[%emt 0:01:40]} 27. f4 {[%emt 0:03:11]} Qh8 {[%emt 0:03:41]} 28. Rde2 {[%emt 0:01:09]} Bf7 {[%emt 0:00:21]} 29. a4 {[%emt 0:02:29]} b6 {[%emt 0:00:14]} 30. Bd3 {[%emt 0:00:32]} g6 {[%emt 0:00:35]} 31. Rg5 {[%emt 0:01:03]} Kg7 {[%emt 0:00:52]} 32. Qh2 {[%emt 0:04:11]} a5 {[%emt 0:01:50]} 33. Qh4 {[%emt 0:01:13]} Rc7 {[%emt 0:00:12]} 34. Rh2 {[%emt 0:00:23]} Rc8 {[%emt 0:00:20]} 35. Kd2 {[%emt 0:01:09]} Re8 {[%emt 0:00:11]} 36. Qxh5 {[%emt 0:00:18]} Qxh5 {[%emt 0:00:17]} 37. Rhxh5 {[%emt 0:00:08]} Rh8 {[%emt 0:00:19]} 38. Rxh8 {[%emt 0:00:09]} Kxh8 {[%emt 0:00:04]} 39. Ke3 {[%emt 0:01:08]} Be8 {[%emt 0:00:13]} 40. b3 {[%emt 0:00:30]} Kg7 {[%emt 0:00:39]} 41. g4 {[%emt 0:00:13]} Bd7 {[%emt 0:00:48]} 42. Re5 {[%emt 0:00:34]} Rf8 {[%emt 0:00:23]} 43. c4 {[%emt 0:00:43]} dxc4 {[%emt 0:00:08]} 44. Bxc4 {[%emt 0:00:06]} Re8 {[%emt 0:00:46]} 45. d5 {[%emt 0:01:46]} exd5 {[%emt 0:00:12]} 46. Rxe8 {[%emt 0:00:06]} Bxe8 {[%emt 0:00:04]} 47. Bxd5 {[%emt 0:00:07]} b5 {[%emt 0:02:03]} 48. axb5 {[%emt 0:00:09]} Bxb5 {[%emt 0:00:02]} 49. Kd4 {[%emt 0:00:35]} g5 {[%emt 0:00:22]} 50. fxg5 {[%emt 0:00:24]} Kg6 {[%emt 0:00:05]} 51. Be6 {[%emt 0:00:58]} a4 {[%emt 0:00:32]} 52. b4 {[%emt 0:00:30]} a3 {[%emt 0:00:44]} 53. Kc3 {[%emt 0:00:29]} Ba4 {[%emt 0:00:19]} 54. Bb3 {[%emt 0:01:07]} Bc6 {[%emt 0:01:04]} 55. Bc4 {[%emt 0:00:38]} Kxg5 {[%emt 0:00:41]} 56. Be6 {[%emt 0:00:33]} Ba4 {[%emt 0:00:30]} 57. Kd2 {[%emt 0:00:22]} a2 {[%emt 0:00:19]} 58. Bxa2 {[%emt 0:00:08]} Kxg4 {[%emt 0:00:02]} 59. Ke3 {[%emt 0:00:25]} Kf5 {[%emt 0:00:19]} 60. Kd4 {[%emt 0:00:07]} Bd7 {[%emt 0:00:32]} 61. Kc5 {[%emt 0:00:36]} Ke5 {[%emt 0:00:09]} 62. Bd5 {[%emt 0:00:13]} Bf5 {[%emt 0:02:08]} 63. b5 {[%emt 0:00:08]} Bd3 {[%emt 0:00:05]} 64. b6 {[%emt 0:00:11]} Ba6 {[%emt 0:00:05]} 65. Kc6 {[%emt 0:00:27]} Kd4 {[%emt 0:00:37]} 66. Bg2 {[%emt 0:00:21]} Ke5 {[%emt 0:02:07]} 67. Kc7 {[%emt 0:00:11]} Ke6 {[%emt 0:00:38]} 68. Bf1 {[%emt 0:00:08]} Bxf1 {[%emt 0:00:05]} 69. b7 {[%emt 0:00:05]} Bg2 {[%emt 0:00:07]} 70. b8=Q {[%emt 0:00:07]} Bd5 {[%emt 0:00:05]} 71. Qb6+ {[%emt 0:00:21]} Ke5 {[%emt 0:00:07]} 72. Qc5 {[%emt 0:00:14]} Ke4 {[%emt 0:00:28]} 73. Kd6 {[%emt 0:00:07]} 1-0

[Event "Uralsk-ch Women 2019"]
[Site "Khanty-Mansiysk"]
[Date "2019.03.14"]
[Round "3.3"]
[White "Mukhina, Jana"]
[Black "Garifullina, Leya"]
[Result "1/2-1/2"]
[ECO "E23"]
[WhiteElo "2038"]
[BlackElo "2095"]
[Annotator "NA RC"]
[PlyCount "87"]
[EventDate "2019.03.12"]
[EventType "swiss"]
[EventCountry "RUS"]
[SourceTitle "playchess.com"]
[Source "ChessBase"]
[SourceQuality "1"]
[TimeControl "5400+30"]

1. d4 {[%emt 0:00:00]} Nf6 {[%emt 0:00:00]} 2. c4 {[%emt 0:00:00]} e6 {[%emt 0:00:00]} 3. Nc3 {[%emt 0:00:00]} Bb4 {[%emt 0:00:13]} 4. Qb3 {[%emt 0:00:00]} c5 {[%emt 0:01:19]} 5. dxc5 {[%emt 0:00:03]} Nc6 {[%emt 0:01:00]} 6. Bg5 {[%emt 0:02:06]} Bxc5 {[%emt 0:11:33]} 7. Nf3 {[%emt 0:06:11]} Nd4 {[%emt 0:13:28]} 8. Nxd4 {[%emt 0:00:40]} Bxd4 {[%emt 0:00:05]} 9. e3 {[%emt 0:01:15]} Qa5 {[%emt 0:10:26]} 10. exd4 {[%emt 0:00:52]} Qxg5 {[%emt 0:00:05]} 11. Qa3 {[%emt 0:02:09]} Qf4 {[%emt 0:05:29]} 12. f3 {[%emt 0:16:30]} Qe3+ {[%emt 0:08:14]} 13. Be2 {[%emt 0:00:31]} d5 {[%emt 0:02:39]} 14. Qc5 {[%emt 0:09:37]} Bd7 {[%emt 0:06:52]} 15. Nb5 {[%emt 0:02:00]} Bxb5 {[%emt 0:01:43]} 16. Qxb5+ {[%emt 0:00:10]} Nd7 {[%emt 0:01:34]} 17. cxd5 {[%emt 0:02:47]} exd5 {[%emt 0:01:42]} 18. Qxd5 {[%emt 0:07:00]} O-O {[%emt 0:01:49]} 19. Qe4 {[%emt 0:00:30]} Qg5 {[%emt 0:02:24]} 20. O-O {[%emt 0:05:09]} Nf6 {[%emt 0:01:42]} 21. f4 {[%emt 0:09:52]} Nxe4 {[%emt 0:04:23]} 22. fxg5 {[%emt 0:00:08]} Nxg5 {[%emt 0:00:09]} 23. Rac1 {[%emt 0:03:23]} Rac8 {[%emt 0:03:43]} 24. Bg4 {[%emt 0:01:16]} Rcd8 {[%emt 0:00:50]} 25. Rf4 {[%emt 0:02:05]} Ne6 {[%emt 0:06:04]} 26. Bxe6 {[%emt 0:00:14]} fxe6 {[%emt 0:00:01]} 27. Rxf8+ {[%emt 0:00:43]} Rxf8 28. Rc7 {[%emt 0:00:19]} Rf7 {[%emt 0:01:15]} 29. Rc8+ {[%emt 0:00:05]} Rf8 {[%emt 0:00:03]} 30. Rxf8+ {[%emt 0:00:52]} Kxf8 {[%emt 0:00:04]} 31. Kf2 {[%emt 0:00:12]} Ke7 {[%emt 0:00:44]} 32. Ke3 {[%emt 0:00:05]} Kd7 {[%emt 0:00:44]} 33. Kf4 {[%emt 0:00:25]} Kd6 {[%emt 0:00:53]} 34. Ke4 {[%emt 0:00:06]} b5 {[%emt 0:01:19]} 35. b4 {[%emt 0:00:43]} a6 {[%emt 0:00:09]} 36. g3 {[%emt 0:11:08]} g6 {[%emt 0:01:08]} 37. h3 {[%emt 0:00:04]} h6 {[%emt 0:00:06]} 38. h4 {[%emt 0:01:38]} h5 {[%emt 0:00:25]} 39. a3 {[%emt 0:00:20]} Kd7 {[%emt 0:00:37]} 40. Kf4 {[%emt 0:01:15]} Ke7 {[%emt 0:01:42]} 41. Ke5 {[%emt 0:00:29]} Kf7 {[%emt 0:00:15]} 42. Ke4 {[%emt 0:08:57]} Ke7 {[%emt 0:00:38]} 43. Ke5 {[%emt 0:00:36]} Kf7 {[%emt 0:00:04]} 44. Ke4 {[%emt 0:06:20]} 1/2-1/2

[Event "Uralsk-ch Women 2019"]
[Site "Khanty-Mansiysk"]
[Date "2019.03.15"]
[Round "4.1"]
[White "Kabanova, Ekaterina"]
[Black "Filippova, Darya"]
[Result "1-0"]
[ECO "A13"]
[WhiteElo "2086"]
[BlackElo "2099"]
[Annotator "NA RC"]
[PlyCount "77"]
[EventDate "2019.03.15"]
[EventType "swiss"]
[EventCountry "RUS"]
[SourceTitle "playchess.com"]
[Source "ChessBase"]
[SourceQuality "1"]
[TimeControl "40/5400+30:1800+30"]

1. c4 {[%emt 0:00:18]} e6 {[%emt 0:00:00]} 2. Nf3 {[%emt 0:01:32]} Nf6 {[%emt 0:00:56]} 3. e3 {[%emt 0:00:26]} d5 {[%emt 0:00:26]} 4. Qc2 {[%emt 0:01:07]} c5 {[%emt 0:05:14]} 5. a3 {[%emt 0:03:52]} Nc6 {[%emt 0:01:40]} 6. d3 {[%emt 0:00:13]} Be7 {[%emt 0:02:17]} 7. Be2 {[%emt 0:00:09]} O-O {[%emt 0:00:11]} 8. Nbd2 {[%emt 0:00:03]} b6 {[%emt 0:01:50]} 9. b3 {[%emt 0:00:14]} Bb7 {[%emt 0:00:40]} 10. h3 {[%emt 0:00:45]} Qc7 {[%emt 0:01:34]} 11. Bb2 {[%emt 0:00:25]} Rad8 {[%emt 0:14:45]} 12. O-O {[%emt 0:01:10]} a5 {[%emt 0:05:06]} 13. Rfe1 {[%emt 0:00:15]} d4 {[%emt 0:02:00]} 14. exd4 {[%emt 0:02:52]} cxd4 {[%emt 0:00:23]} 15. Bf1 {[%emt 0:06:32]} e5 {[%emt 0:03:48]} 16. Qd1 {[%emt 0:03:38]} Nd7 {[%emt 0:01:34]} 17. Ne4 {[%emt 0:00:11]} h6 {[%emt 0:07:15]} 18. Nfd2 {[%emt 0:01:39]} f5 {[%emt 0:02:31]} 19. Ng3 {[%emt 0:00:01]} Bd6 {[%emt 0:00:33]} 20. Qh5 {[%emt 0:05:18]} Ne7 {[%emt 0:00:15]} 21. Rab1 {[%emt 0:01:00]} Bc5 {[%emt 0:07:36]} 22. Qd1 {[%emt 0:08:12]} Qd6 {[%emt 0:00:49]} 23. Ra1 {[%emt 0:00:41]} Rde8 {[%emt 0:01:24]} 24. Be2 {[%emt 0:07:21]} Ng6 {[%emt 0:04:25]} 25. Bf3 {[%emt 0:04:09]} Bxf3 {[%emt 0:00:48]} 26. Nxf3 {[%emt 0:00:02]} Nf4 {[%emt 0:02:16]} 27. Nh4 {[%emt 0:07:13]} Qc6 {[%emt 0:05:20]} 28. Bc1 {[%emt 0:06:51]} g5 {[%emt 0:00:13]} 29. Bxf4 {[%emt 0:00:18]} gxh4 {[%emt 0:03:08]} 30. Nxf5 {[%emt 0:02:16]} Rf6 {[%emt 0:06:09]} 31. Qh5 {[%emt 0:14:06]} Ree6 {[%emt 0:01:33]} 32. Bd2 {[%emt 0:03:22]} e4 {[%emt 0:03:34]} 33. dxe4 {[%emt 0:01:08]} Rxe4 {[%emt 0:00:15]} 34. Rxe4 {[%emt 0:00:35]} Qxe4 {[%emt 0:00:09]} 35. Nxh6+ {[%emt 0:00:06]} Kg7 {[%emt 0:00:39]} 36. Ng4 {[%emt 0:02:04]} Rg6 {[%emt 0:01:08]} 37. Re1 {[%emt 0:01:00]} Qc2 {[%emt 0:00:21]} 38. Bh6+ {[%emt 0:00:39]} Kf7 {[%emt 0:00:13]} 39. Qd5+ {[%emt 0:00:19]} 1-0